[Event "German Bundesliga 2021-22"]
[Site "Germany"]
[Date "2022.04.30"]
[Round "5.15"]
[White "Rietze, Clemens"]
[Black "Zilka, Stepan"]
[Result "0-1"]
[ECO "E18"]
[WhiteElo "2279"]
[BlackElo "2599"]
[Annotator "TA"]
[PlyCount "104"]
[EventDate "2022.03.05"]
[EventType "team-tourn"]
[EventCountry "GER"]
[SourceTitle "playchess.com"]
[Source "ChessBase"]
[SourceQuality "1"]
[TimeControl "40/5400+30:1800+30"]

{[%evp 20,104,19,19,19,0,1,-8,0,0,-6,-1,-4,-7,0,-8,-2,-16,-16,-6,-13,-16,-16,-16,-16,-16,-16,-16,-16,-16,-16,-16,-16,-21,-9,-37,-16,-16,-16,-23,-16,-37,-22,-21,-16,-133,-140,-155,-140,-143,-150,-193,-199,-190,-195,-266,-266,-266,-260,-260,-260,-348,-346,-335,-300,-421,-266,-266,-235,-553,-535,-741,-741,-741,-740,-740,-740,-726,-695,-684,-680,-664,-550,-29978,-29979,-29975,-12229]} 1. d4 {[%emt 0:00:00]} Nf6 {[%emt 0:00:00]} 2. c4 {[%emt 0:00:00]} e6 {[%emt 0:00:00]} 3. Nf3 {[%emt 0:00:00]} b6 {[%emt 0:00:00]} 4. g3 {[%emt 0:00:00]} Bb7 {[%emt 0:00:00]} 5. Bg2 {[%emt 0:00:00]} Be7 {[%emt 0:00:00]} 6. O-O {[%emt 0:00:00]} O-O {[%emt 0:00:00]} 7. Nc3 {[%emt 0:00:00]} Ne4 {[%emt 0:00:00]} 8. Bd2 {[%emt 0:00:00]} d6 {[%emt 0:00:00]} 9. Ne1 {[%emt 0:08:00]} Nxc3 {[%emt 0:00:00]} 10. Bxc3 {[%emt 0:00:30]} Bxg2 {[%emt 0:00:00]} 11. Nxg2 {[%emt 0:00:30]} d5 {[%emt 0:00:00] E18: Queen's Indian: Old Main Line (4 g3 Bb7 5 Bg2 Be7 6 0-0 0-0 7 Nc3).} 12. Qb3 {[%emt 0:11:30]} c6 {[%emt 0:00:30] [#]} 13. e4 $146 {[%emt 0:04:30]} ({Predecessor:} 13. Nf4 Nd7 14. Nd3 {½-½ (14) Miton,K (2629)-Polgar,J (2682) Khanty-Mansiysk 2010}) 13... dxe4 {[%emt 0:02:30] The position is equal.} 14. Rfe1 {[%emt 0:00:30]} Nd7 {[%emt 0:11:30]} 15. Rxe4 {[%emt 0:03:30]} b5 {[%emt 0:03:30]} 16. cxb5 {[%emt 0:19:30]} Rb8 {[%emt 0:00:30]} 17. a4 {[%emt 0:00:30]} Nf6 {[%emt 0:05:30]} 18. Ree1 {[%emt 0:03:30]} a6 {[%emt 0:13:30]} 19. Nf4 {[%emt 0:03:30][%cal Of4e6]} axb5 {[%emt 0:02:30]} 20. axb5 {[%emt 0:00:30]} Rxb5 {[%emt 0:01:30]} 21. Qc4 {[%emt 0:02:30]} Nd5 {[%emt 0:04:30]} 22. Nxd5 {[%emt 0:10:30]} Qxd5 {[%emt 0:00:30]} 23. Qxd5 {[%emt 0:02:30]} cxd5 {[%emt 0:00:00]} 24. Ra7 {[%emt 0:00:00]} Bb4 {[%emt 0:03:00]} 25. Rea1 {[%emt 0:00:00]} g5 {[%emt 0:01:30]} 26. h3 {[%emt 0:06:30]} Rc8 {[%emt 0:02:30]} 27. Ra8 {[%emt 0:03:30]} Rxa8 {[%emt 0:00:30]} 28. Rxa8+ $15 {[%emt 0:00:00][%mdl 4096] Endgame KRB-KRB} Kg7 {[%emt 0:00:00]} 29. Kg2 {[%emt 0:01:00]} h5 {[%emt 0:01:00]} 30. Kf3 {[%emt 0:02:30]} Rb7 {[%emt 0:01:30]} 31. Rc8 {[%emt 0:00:30]} Rb6 {[%emt 0:06:30]} 32. h4 {[%emt 0:05:17] Black converts the advantage convincingly.} (32. Ke3 $11) 32... gxh4 $17 {[%emt 0:03:30]} 33. gxh4 {[%emt 0:00:02]} Be7 {[%emt 0:00:30]} 34. Kg3 {[%emt 0:00:49] [#]} Ra6 $1 {[%emt 0:02:30] Against Ra8} 35. Bd2 {[%emt 0:03:01]} Bf6 {[%emt 0:01:30]} 36. Bc3 {[%emt 0:07:02]} Ra1 {[%emt 0:03:30]} 37. b4 {[%emt 0:01:57]} (37. f3 {was worth a try.}) 37... Ra3 $19 {[%emt 0:02:30] Hoping for ...Bxd4.} 38. f3 {[%emt 0:01:32]} Rb3 {[%emt 0:00:30]} 39. Rc7 {[%emt 0:01:20]} Kg6 {[%emt 0:02:30]} 40. Kh3 {[%emt 0:01:50]} Bd8 {[%emt 0:00:00]} 41. Rc8 {[%emt 0:00:00]} Be7 {[%emt 0:00:00]} 42. Kg3 {[%emt 0:00:00]} (42. Be1 $142) 42... Kf5 {[%emt 0:00:00]} 43. Be1 {[%emt 0:00:00]} Rb1 {[%emt 0:00:00]} ({Don't blunder} 43... Bxb4 $2 44. Bf2 $19) 44. Bd2 {[%emt 0:00:00] [#]} (44. Bf2) 44... Bd6+ {[%emt 0:00:00]} 45. Kf2 {[%emt 0:00:00]} Rb2 {[%emt 0:00:00]} 46. Ke1 {[%emt 0:00:00]} Bxb4 {[%emt 0:00:00]} 47. Bxb4 {[%emt 0:00:00]} Rxb4 {[%emt 0:00:00] KR-KR} 48. Rh8 {[%emt 0:00:40]} Kg6 {[%emt 0:02:30]} 49. Rg8+ {[%emt 0:00:30]} Kh7 {[%emt 0:00:30]} 50. Rg5 {[%emt 0:00:30]} f6 {[%emt 0:00:30]} 51. Rxh5+ {[%emt 0:00:30]} Kg7 {[%emt 0:00:30]} 52. Ke2 {[%emt 0:00:30]} Rb8 {[%emt 0:00:30] Weighted Error Value: White=0.48/Black=0.06 (flawless)} 0-1

[Event "German Bundesliga 2021-22"]
[Site "Germany"]
[Date "2022.04.30"]
[Round "5.16"]
[White "Maze, Sebastien"]
[Black "Meissner, Felix"]
[Result "1-0"]
[ECO "B23"]
[WhiteElo "2527"]
[BlackElo "2381"]
[Annotator "TA"]
[PlyCount "47"]
[EventDate "2022.03.05"]
[EventType "team-tourn"]
[EventCountry "GER"]
[SourceTitle "playchess.com"]
[Source "ChessBase"]
[SourceQuality "1"]
[TimeControl "40/5400+30:1800+30"]

{[%evp 9,47,16,45,49,44,25,33,29,45,37,38,35,39,45,37,37,60,70,191,204,293,266,356,363,342,290,380,390,377,388,379,356,710,709,1300,1290,1538,1418,29994,29995]} 1. e4 {[%emt 0:00:00]} c5 {[%emt 0:00:00]} 2. Nc3 {[%emt 0:00:00]} a6 {[%emt 0:00:00]} 3. g3 {[%emt 0:00:00]} b5 {[%emt 0:00:00]} 4. Bg2 {[%emt 0:00:00]} Bb7 {[%emt 0:00:00]} 5. Nge2 {[%emt 0:00:00]} e5 {[%emt 0:00:00]} 6. f4 {[%emt 0:00:19] B23: Closed Sicilian: Lines without g3.} d6 {[%emt 0:00:00]} 7. a4 {[%emt 0:04:56]} b4 {[%emt 0:01:50]} 8. Nd5 {[%emt 0:00:05] White is slightly better.} Ne7 {[%emt 0:03:36]} 9. O-O {[%emt 0:08:37]} Nxd5 {[%emt 0:07:12]} 10. exd5 {[%emt 0:00:03]} Nd7 {[%emt 0:01:13] [#]} 11. fxe5 $146 {[%emt 0:05:34]} ({Predecessor:} 11. c4 bxc3 12. bxc3 c4 13. Rb1 Qc7 14. Ba3 Rb8 15. Re1 Be7 16. fxe5 dxe5 17. Bxe7 Kxe7 {0-1 (39) Wang,C (2513)-Zhou,J (2574) China 2014}) 11... dxe5 {[%emt 0:03:34]} 12. c4 {[%emt 0:01:31]} Bd6 {[%emt 0:05:41]} 13. g4 {[%emt 0:13:54]} h5 {[%emt 0:30:25] Black cannot hold the game after this.} (13... e4 $14) 14. Ng3 $18 {[%emt 0:00:05]} hxg4 {[%emt 0:03:52]} (14... h4 $142) 15. Qxg4 {[%emt 0:00:05]} g6 {[%emt 0:04:01]} 16. Ne4 {[%emt 0:02:00]} Be7 {[%emt 0:06:21]} 17. d3 {[%emt 0:03:29] Black must now prevent Bg5.} Nf8 {[%emt 0:08:25]} 18. Qg3 {[%emt 0:01:25]} (18. Qf3 f5 $16) 18... Rh5 {[%emt 0:02:36]} 19. Bf3 {[%emt 0:03:01]} Rf5 {[%emt 0:01:11]} 20. Be3 {[%emt 0:00:04]} Rc8 $2 {[%emt 0:08:27]} (20... a5 21. Bg4 Bc8 22. Bxf5 (22. Nxc5 Rxf1+ 23. Rxf1 Bxg4 $16) (22. Bxc5 Rxf1+ 23. Rxf1 Bxc5+ 24. Nxc5 Bxg4 $18) 22... gxf5) 21. Bg4 {[%emt 0:00:32]} Rxf1+ {[%emt 0:00:37]} 22. Rxf1 {[%emt 0:00:04]} f5 {[%emt 0:00:34] [#]} 23. Qxe5 $1 {[%emt 0:00:46][%cal Of1f5] Intending Rxf5! and mate.} fxg4 {[%emt 0:04:09] [#]} (23... Ba8 24. Rxf5) 24. Rxf8+ $1 {[%emt 0:06:18][%mdl 576] Pin.  Weighted Error Value: White=0.05 (flawless) /Black=0.62} 1-0

[Event "German Bundesliga 2021-22"]
[Site "Germany"]
[Date "2022.04.30"]
[Round "5.16"]
[White "Hennig, Dirk"]
[Black "Loxine, Jakov"]
[Result "1-0"]
[ECO "E67"]
[WhiteElo "2385"]
[BlackElo "2390"]
[Annotator "TA"]
[PlyCount "69"]
[EventDate "2022.03.05"]
[EventType "team-tourn"]
[EventCountry "GER"]
[SourceTitle "playchess.com"]
[Source "ChessBase"]
[SourceQuality "1"]
[TimeControl "40/5400+30:1800+30"]

{[%evp 21,68,46,33,35,41,58,59,48,122,103,105,87,140,134,167,145,127,137,190,181,229,208,235,258,257,260,250,245,239,237,248,258,270,95,93,94,138,137,229,227,227,232,351,354,344,313,1267,1251,29999]} 1. d4 {[%emt 0:00:00]} Nf6 {[%emt 0:00:00]} 2. Nf3 {[%emt 0:00:00]} g6 {[%emt 0:00:00]} 3. c4 {[%emt 0:00:00]} Bg7 {[%emt 0:00:00]} 4. g3 {[%emt 0:00:00]} O-O {[%emt 0:00:00]} 5. Bg2 {[%emt 0:00:00]} d6 {[%emt 0:00:00]} 6. O-O {[%emt 0:00:00]} Nbd7 {[%emt 0:00:00]} 7. Qc2 {[%emt 0:00:00]} e5 {[%emt 0:00:00]} 8. Rd1 {[%emt 0:00:00]} exd4 {[%emt 0:02:08]} 9. Nxd4 {[%emt 0:00:00]} Re8 {[%emt 0:00:04]} 10. Nc3 {[%emt 0:00:00]} a6 {[%emt 0:05:22]} 11. b3 {[%emt 0:04:09]} Rb8 {[%emt 0:08:21]} 12. Bb2 {[%emt 0:07:24] E67: King's Indian: Fianchetto: 6...Nbd7.} c5 {[%emt 0:23:52]} 13. Nf3 {[%emt 0:00:46]} b5 {[%emt 0:00:57]} 14. cxb5 {[%emt 0:03:42] [#] White is slightly better.} Qe7 $146 {[%emt 0:04:31]} ({Black should try} 14... axb5 $14 15. Rxd6 b4) ({Predecessor:} 14... axb5 15. Rxd6 b4 16. Na4 Qe7 17. Rad1 Ne4 18. Rc6 Bxb2 19. Qxb2 Ndf6 20. Nxc5 Nc3 21. Re1 Ng4 22. e3 Rb5 23. Nd3 Bb7 24. Rc4 Ne4 25. Nd4 Rb6 26. f3 {1-0 (26) Gukesh,D (2529)-Setyaki,A (2378) Ho Chi Minh City 2019}) 15. bxa6 {[%emt 0:01:55] White is more active.} Bxa6 {[%emt 0:00:22]} 16. e3 {[%emt 0:08:17]} Nb6 {[%emt 0:02:53]} ({Better is} 16... Red8) 17. a4 $16 {[%emt 0:17:44]} Nc8 {[%emt 0:06:21]} 18. Rab1 {[%emt 0:03:37]} Bb7 {[%emt 0:06:16]} 19. Ne1 {[%emt 0:02:31]} Qe6 {[%emt 0:02:16]} (19... Na7 $16 {was necessary.} 20. Ba1 Bxg2 21. Nxg2 Nc6) 20. Nb5 $18 {[%emt 0:01:35] [#] aiming for Nc7.} Bxg2 {[%emt 0:01:15]} (20... Re7 {is a better defense.} 21. b4 Bxg2 22. Nxg2 Qe4) 21. Nxg2 {[%emt 0:00:51]} (21. Kxg2 Qe7 22. Nf3 Rd8) 21... Qg4 {[%emt 0:11:11]} 22. Bxf6 {[%emt 0:04:26]} Bxf6 {[%emt 0:00:04]} 23. Nxd6 {[%emt 0:02:12]} Nxd6 {[%emt 0:00:28]} 24. Rxd6 {[%emt 0:00:09]} Be7 {[%emt 0:02:02]} 25. Rdd1 {[%emt 0:03:11]} (25. Qxc5 Bxd6 26. Qxd6 Red8 $17) 25... g5 {[%emt 0:00:18]} 26. Ne1 {[%emt 0:02:33]} Rb6 {[%emt 0:01:34]} 27. f3 $2 {[%emt 0:10:44]} (27. Rd5 $18 {has better winning chances.}) 27... Qe6 $16 {[%emt 0:00:52]} 28. e4 {[%emt 0:06:10]} g4 {[%emt 0:04:38]} 29. Rd5 {[%emt 0:00:56]} Bf6 {[%emt 0:04:30]} (29... h6 $16 {was called for.} 30. Rbd1 Bf8 31. fxg4 Qxg4) 30. Qxc5 $18 {[%emt 0:04:37]} gxf3 {[%emt 0:00:22]} 31. Nxf3 {[%emt 0:00:23]} Qxe4 {[%emt 0:09:33]} (31... Rc8 $142 32. Qe3 Rb4) 32. Re1 {[%emt 0:00:37]} Be7 {[%emt 0:02:02]} 33. Rg5+ {[%emt 0:04:41]} ({Weaker is} 33. Rxe4 Bxc5+ 34. Red4 (34. Rxc5 Rxe4 35. Kf1 Kg7 $11) 34... Bxd4+ 35. Nxd4 Rb4 $11) (33. Qxb6 Qxd5 34. Kg2 (34. Nd4 Kg7 $11) 34... Rc8 35. Rxe7 Rc2+ 36. Kg1 Qxf3 37. Re8+ Kg7 38. Qd4+ f6 39. Qd7+ Kh6 40. Qh3+ Qh5 41. Qxh5+ Kxh5) 33... Kf8 $2 {[%emt 0:00:07]} (33... Rg6 34. Qb5 (34. Rxe4 Bxc5+ 35. Rxc5 Rxe4 $11) 34... Qa8) 34. Qxb6 {[%emt 0:00:24][%cal Rb6h6] [#]} ({Worse is} 34. Rxe4 Bxc5+ 35. Rxc5 Rxe4 $11) 34... Qxf3 {[%emt 0:00:37]} 35. Qh6# {[%emt 0:00:34] Weighted Error Value: White=0.14 (very precise) /Black=0.55} 1-0

[Event "German Bundesliga 2021-22"]
[Site "Germany"]
[Date "2022.04.30"]
[Round "5.16"]
[White "Lamby, Philipp"]
[Black "Dinstuhl, Volkmar"]
[Result "1-0"]
[ECO "B22"]
[WhiteElo "2151"]
[BlackElo "2393"]
[Annotator "TA"]
[PlyCount "53"]
[EventDate "2022.03.05"]
[EventType "team-tourn"]
[EventCountry "GER"]
[SourceTitle "playchess.com"]
[Source "ChessBase"]
[SourceQuality "1"]
[TimeControl "40/5400+30:1800+30"]

{[%evp 9,53,2,27,8,37,29,35,26,80,59,84,78,101,18,62,9,23,0,0,-36,-17,-29,-36,-61,-27,-25,0,-10,0,-15,-14,-25,8,-12,48,-41,249,241,708,678,1407,810,738,584,541,544]} 1. e4 {[%emt 0:00:00]} c5 {[%emt 0:00:00]} 2. c3 {[%emt 0:00:00]} d6 {[%emt 0:00:00]} 3. d4 {[%emt 0:00:00]} Nf6 {[%emt 0:00:00]} 4. dxc5 {[%emt 0:01:00]} Nc6 {[%emt 0:00:00]} 5. Bc4 {[%emt 0:06:44]} e6 {[%emt 0:00:00]} 6. Qe2 {[%emt 0:01:04] B22: Sicilian: 2 c3.} dxc5 {[%emt 0:00:00]} 7. Nf3 {[%emt 0:00:17]} Be7 {[%emt 0:02:36]} 8. O-O {[%emt 0:00:54] White is slightly better.} O-O {[%emt 0:07:40]} (8... Qc7 $11 {keeps the balance.}) 9. e5 $16 {[%emt 0:16:39]} Nd5 {[%emt 0:05:28]} 10. Qe4 {[%emt 0:06:37]} b6 {[%emt 0:36:10][%cal Bb7b6,Bb6b5][%mdl 32] [#]} 11. Nbd2 $146 {[%emt 0:11:57]} ({Better is} 11. Bd3 $16 {[%csl Gd3][%cal Re4h7]} g6 12. Bb5 (12. Bh6 Re8 $14)) ({Predecessor:} 11. Rd1 Bb7 12. Bd3 g6 13. Qe2 Qc7 14. a3 Na5 15. Bh6 c4 16. Bc2 Rfd8 17. Nbd2 {1-0 (41) Papin,V (2374)-Jurcik,M (2164) Budva 2003}) 11... Bb7 {[%emt 0:01:26]} 12. Bd3 {[%emt 0:27:19]} (12. Re1 $14) 12... g6 $11 {[%emt 0:01:33]} 13. Bc2 {[%emt 0:00:07]} Qc7 $1 {[%emt 0:11:01]} 14. Nc4 {[%emt 0:06:21]} b5 {[%emt 0:06:25]} 15. Na3 {[%emt 0:00:07]} a6 {[%emt 0:00:46]} 16. Bh6 {[%emt 0:00:47]} Rfe8 {[%emt 0:02:39]} 17. Rae1 {[%emt 0:00:24]} (17. c4 Ndb4 18. Qe2 (18. cxb5 $2 Nd4 $19) 18... Nd4 19. Nxd4 cxd4 20. cxb5 Red8 $17) 17... Rad8 {[%emt 0:05:00]} (17... b4 $5 {[%cal Rb4a3]} 18. Nb1 bxc3 19. bxc3 (19. Nxc3 Nxc3 20. bxc3 Nd4 $17) 19... Rad8 $11) 18. Qg4 {[%emt 0:00:56]} Bf8 {[%emt 0:08:37]} 19. Bxf8 {[%emt 0:01:06]} Rxf8 {[%emt 0:00:01]} 20. h4 {[%emt 0:01:11][%cal Bh2h4,Bh4h5][%mdl 32]} Kg7 {[%emt 0:01:26]} (20... b4 $5 {[%cal Rb4a3]} 21. Nb1 a5 $15) 21. h5 {[%emt 0:00:47]} c4 {[%emt 0:03:13]} (21... f5 $11 22. exf6+ Nxf6 23. h6+ (23. Qxe6 $2 Bc8 $19) 23... Kxh6 24. Qh4+ (24. Qxe6 Kg7 $15) 24... Kg7) 22. Ng5 {[%emt 0:01:53]} (22. Qg3 $1 $14) 22... Qe7 $2 {[%emt 0:02:43][%mdl 8192] [#] This move loses the game for Black.} (22... Nxe5 $15 {stays ahead.} 23. Qd4 Nf4 24. Qxe5+ (24. h6+ $2 Kxh6 25. Qxf4 Nf3+ 26. Qxf3 Bxf3 $19) 24... Qxe5 25. Rxe5 Bxg2) 23. Nxh7 $1 $18 {[%emt 0:02:52][%cal Bg5h7,Bh7g5,Bg5e6][%mdl 32]} Rg8 $2 {[%emt 0:02:56]} (23... Kxh7 24. hxg6+ fxg6) 24. hxg6 {[%emt 0:02:56] White is clearly winning.} Kh8 {[%emt 0:01:09]} 25. Ng5 {[%emt 0:00:33] Hoping for Qh5+.} fxg6 {[%emt 0:00:32]} 26. Qh3+ {[%emt 0:02:57]} Kg7 {[%emt 0:00:04]} 27. Nxe6+ {[%emt 0:01:18] Weighted Error Value: White=0.30/Black=0.47} 1-0

[Event "German Bundesliga 2021-22"]
[Site "Germany"]
[Date "2022.05.01"]
[Round "6.1"]
[White "Harikrishna, Pentala"]
[Black "Nihal Sarin"]
[Result "1/2-1/2"]
[ECO "C78"]
[WhiteElo "2719"]
[BlackElo "2648"]
[Annotator "TA"]
[PlyCount "80"]
[EventDate "2022.03.05"]
[EventType "team-tourn"]
[EventCountry "GER"]
[SourceTitle "playchess.com"]
[Source "ChessBase"]
[SourceQuality "1"]
[TimeControl "40/5400+30:1800+30"]

{[%evp 13,80,27,34,23,19,16,22,16,20,0,0,0,0,0,0,0,10,20,29,14,10,18,20,19,32,30,24,13,27,10,37,26,39,0,0,0,0,0,0,3,18,8,14,0,0,0,16,0,0,0,0,0,0,0,0,0,0,0,0,0,0,0,0,0,0,0,0,0,0]} 1. e4 {[%emt 0:00:00]} e5 {[%emt 0:00:00]} 2. Nf3 {[%emt 0:00:00]} Nc6 {[%emt 0:00:00]} 3. Bb5 {[%emt 0:00:00][%cal Bf1b5,Bb5a4,Ba4c2][%mdl 32]} a6 {[%emt 0:00:00]} 4. Ba4 {[%emt 0:00:00]} Nf6 {[%emt 0:00:00]} 5. O-O {[%emt 0:00:00]} Bc5 {[%emt 0:00:00]} 6. c3 {[%emt 0:00:00]} O-O {[%emt 0:00:00]} 7. d4 {[%emt 0:00:00]} Ba7 {[%emt 0:00:00]} 8. Re1 {[%emt 0:00:00] C78: Ruy Lopez: Archangelsk and Möller Defences.} b5 {[%emt 0:00:00]} 9. Bc2 {[%emt 0:00:00]} d6 {[%emt 0:00:00]} 10. h3 {[%emt 0:00:00]} Bb7 {[%emt 0:00:00]} 11. Be3 {[%emt 0:00:00]} exd4 {[%emt 0:00:00]} 12. cxd4 {[%emt 0:00:00]} Nb4 {[%emt 0:00:00]} 13. Nbd2 {[%emt 0:00:00]} Nxc2 {[%emt 0:00:00]} 14. Qxc2 {[%emt 0:00:00]} Qd7 {[%emt 0:00:00]} 15. d5 {[%emt 0:03:25]} Bxe3 {[%emt 0:00:00]} 16. Rxe3 {[%emt 0:00:06] [#]} Rac8 $146 {[%emt 0:00:00]} ({Predecessor:} 16... c6 17. dxc6 Bxc6 18. Nd4 Bb7 19. a4 Rac8 20. Qd3 bxa4 21. Nf5 Rfd8 22. Qd4 Qe6 23. Rxa4 {½-½ (40) Severins,J (2178)-Visser,A (2295) ICCF email 2017}) 17. Nd4 {[%emt 0:04:05]} c6 {[%emt 0:00:00]} 18. dxc6 {[%emt 0:00:37]} Bxc6 {[%emt 0:00:00]} 19. Qd3 {[%emt 0:03:37]} Rfe8 {[%emt 0:00:00]} 20. Rd1 {[%emt 0:05:20]} g6 {[%emt 0:00:37] Prevents Nf5.} 21. a3 {[%emt 0:07:03]} Qd8 {[%emt 0:28:46]} 22. Nxc6 {[%emt 0:19:27]} Rxc6 {[%emt 0:00:18]} 23. Nf3 {[%emt 0:01:16]} Qc7 {[%emt 0:23:22] The position is equal.} 24. Ree1 {[%emt 0:09:10]} Qb7 {[%emt 0:01:31]} 25. Qd4 {[%emt 0:05:18]} Qe7 {[%emt 0:17:03]} 26. b3 {[%emt 0:12:06]} Rec8 {[%emt 0:09:07]} ({Much less strong is} 26... Nxe4 27. Nd2 d5 28. f3 $16) 27. Qd2 {[%emt 0:04:23]} Kg7 {[%emt 0:02:40]} (27... Nxe4 $2 28. Qd5 $18) 28. Re3 {[%emt 0:08:18]} Qc7 {[%emt 0:03:26]} 29. Ree1 {[%emt 0:03:50] Black must now prevent Nd4.} Qe7 {[%emt 0:00:18]} 30. a4 {[%emt 0:05:21]} bxa4 {[%emt 0:03:12]} 31. bxa4 {[%emt 0:00:14]} Rc4 {[%emt 0:06:42]} 32. Qxd6 {[%emt 0:04:03]} Qxd6 {[%emt 0:00:22]} 33. Rxd6 {[%emt 0:00:07]} Nxe4 {[%emt 0:02:57]} 34. Rxa6 {[%emt 0:01:23]} Nc5 {[%emt 0:00:06][%csl LRa4,LRa6]} 35. Ra7 {[%emt 0:01:24] [#] aiming for Ree7.} Rxa4 {[%emt 0:00:11]} 36. Rae7 {[%emt 0:02:27]} Kf6 {[%emt 0:02:17]} 37. R7e3 {[%emt 0:00:22]} Rca8 {[%emt 0:01:34]} 38. Rc3 {[%emt 0:02:57]} Ne4 {[%emt 0:02:19]} 39. Rce3 {[%emt 0:00:17]} Nc5 {[%emt 0:00:05]} 40. Rc3 {[%emt 0:00:21]} Ne4 {[%emt 0:00:05] Weighted Error Value: White=0.05 (flawless) /Black=0.03 (flawless)} 1/2-1/2

[Event "German Bundesliga 2021-22"]
[Site "Germany"]
[Date "2022.05.01"]
[Round "6.1"]
[White "Volokitin, Andrei"]
[Black "Navara, David"]
[Result "1/2-1/2"]
[ECO "C50"]
[WhiteElo "2687"]
[BlackElo "2693"]
[Annotator "TA"]
[PlyCount "58"]
[EventDate "2022.03.05"]
[EventType "team-tourn"]
[EventCountry "GER"]
[SourceTitle "playchess.com"]
[Source "ChessBase"]
[SourceQuality "1"]
[TimeControl "40/5400+30:1800+30"]

{[%evp 14,58,6,4,26,11,10,7,11,0,31,0,0,0,5,5,4,0,0,0,0,0,4,4,14,17,12,15,22,0,0,0,0,0,0,0,0,0,0,0,5,0,0,0,0,0,0]} 1. e4 {[%emt 0:00:00]} e5 {[%emt 0:00:00]} 2. Nf3 {[%emt 0:00:00]} Nc6 {[%emt 0:00:00]} 3. Bc4 {[%emt 0:00:00]} Bc5 {[%emt 0:00:00]} 4. O-O {[%emt 0:00:00]} Nf6 {[%emt 0:00:00]} 5. d3 {[%emt 0:00:00]} O-O {[%emt 0:00:00]} 6. h3 {[%emt 0:00:00]} d6 {[%emt 0:00:00]} 7. c3 {[%emt 0:00:00]} h6 {[%emt 0:00:00]} 8. Re1 {[%emt 0:00:00]} a5 {[%emt 0:00:00] 8...Bb6 is setting a new trend. C54: Giuoco Piano: 4 c3 Nf6, main lines with 5 d4 and 5 d3.} 9. Nbd2 {[%emt 0:00:00][%cal Bb1d2,Bd2f1,Bf1g3][%mdl 32]} Be6 {[%emt 0:00:00]} 10. Bb5 {[%emt 0:00:00]} Bb6 {[%emt 0:00:00]} 11. Nf1 {[%emt 0:00:00]} Ne7 {[%emt 0:00:00]} 12. Ng3 {[%emt 0:17:20]} Nd7 {[%emt 0:00:00] The position is equal.} 13. d4 {[%emt 0:02:03] Black must now prevent d5.} f5 $1 {[%emt 0:00:00]} 14. dxe5 {[%emt 0:13:50]} (14. exf5 {with more complications.} Nxf5 15. dxe5 Nxe5 16. Nxe5 dxe5 17. Qxd8 Raxd8 18. Nxf5 Rxf5 19. Be3) 14... Nxe5 {[%emt 0:00:00] [#]} 15. Nxe5 $146 {[%emt 0:39:00]} (15. exf5 {looks sharper.} Nxf5 16. Nxe5 dxe5 17. Qxd8 Raxd8 18. Nxf5 Rxf5 19. Be3) ({Predecessor:} 15. Nd4 Bc8 16. exf5 Nxf5 17. Ngxf5 Bxf5 18. Be3 Bd7 19. f4 Bxd4 20. Bxd4 Bxb5 21. fxe5 {1-0 (66) Ding,L (2791)-Nakamura,H (2736) Chess.com INT 2020}) 15... dxe5 {[%emt 0:00:00]} 16. Qxd8 {[%emt 0:00:43]} Raxd8 {[%emt 0:00:00]} 17. exf5 {[%emt 0:00:04]} Nxf5 {[%emt 0:00:00]} 18. Nxf5 {[%emt 0:00:04]} Bxf5 {[%emt 0:00:07]} (18... Rxf5 $5 19. Be3 Bxe3 20. Rxe3 Rd2 $11) 19. Be3 {[%emt 0:00:43]} Bxe3 {[%emt 0:01:51]} 20. Rxe3 {[%emt 0:00:02]} Rd2 {[%emt 0:01:29]} 21. Re2 {[%emt 0:05:02]} Rxe2 {[%emt 0:01:23]} 22. Bxe2 $11 {[%emt 0:00:03][%mdl 4096] Endgame KRB-KRB} Rd8 {[%emt 0:11:49]} 23. Bc4+ {[%emt 0:03:59]} Kf8 {[%emt 0:00:23]} 24. Re1 {[%emt 0:00:25]} e4 {[%emt 0:00:10]} 25. Kf1 {[%emt 0:01:52]} Rd2 {[%emt 0:00:33]} 26. Re2 {[%emt 0:00:05]} Rd1+ {[%emt 0:00:06]} 27. Re1 {[%emt 0:00:03]} Rd2 {[%emt 0:00:06]} 28. Re2 {[%emt 0:00:03]} Rd1+ {[%emt 0:00:07]} 29. Re1 {[%emt 0:00:03]} Rd2 {[%emt 0:00:06] An even fight not without its subleties.  Weighted Error Value: White=0.05 (flawless) /Black=0.02 (flawless)} 1/2-1/2